fUSD/lending_fUSD_20250709
["ID","MTS","AMOUNT","RATE_DAILY","PERIOD"]
[370731603,1752105067125,-151.0,0.00020821,2]
[370731604,1752105067134,-151.0,0.00020821,2]
[370731605,1752105067143,-151.0,0.00020821,2]
[370731606,1752105067153,-151.0,0.00020821,2]
[370731607,1752105067162,-151.0,0.00020821,2]
[370731608,1752105067172,-151.0,0.00020821,2]
[370731609,1752105067182,-151.0,0.00020821,2]
[370731610,1752105067192,-185.845881,0.00020821,2]
[370731611,1752105067201,-460.0,0.00020821,2]
[370731612,1752105067211,-151.0,0.00020821,2]
[370731613,1752105067220,-151.0,0.00020821,2]
[370731614,1752105067230,-460.0,0.00020821,2]
[370731615,1752105067240,-151.0,0.00020821,2]
[370731616,1752105067249,-220.537444,0.00020821,2]
[370731617,1752105067259,-460.0,0.00020821,2]
[370731618,1752105067268,-207.734952,0.00020821,2]
[370731619,1752105067278,-207.734952,0.00020821,2]
[370731620,1752105067287,-207.734952,0.00020821,2]
[370731621,1752105067297,-207.734952,0.00020821,2]
[370731622,1752105067306,-151.0,0.00020821,2]
[370731623,1752105067316,-151.0,0.00020821,2]
[370731624,1752105067325,-151.0,0.00020821,2]
[370731625,1752105067335,-151.0,0.00020821,2]
[370731626,1752105067346,-460.0,0.00020821,2]
[370731627,1752105067357,-460.0,0.00020821,2]
[370731628,1752105067368,-460.0,0.00020821,2]
[370731629,1752105067380,-460.0,0.00020821,2]
[370731630,1752105067390,-596.92,0.00020821,2]
[370731631,1752105067400,-151.0,0.00020821,2]
[370731632,1752105067409,-151.0,0.00020821,2]
[370731633,1752105067419,-151.0,0.00020821,2]
[370731634,1752105067428,-151.0,0.00020821,2]
[370731635,1752105067437,-151.0,0.00020821,2]
[370731636,1752105067447,-151.0,0.00020821,2]
[370731637,1752105067456,-151.0,0.00020821,2]
[370731638,1752105067465,-460.0,0.00020821,2]
[370731639,1752105067475,-460.0,0.00020821,2]
[370731640,1752105067484,-460.0,0.00020821,2]
[370731641,1752105067494,-467.33,0.00020821,2]
[370731642,1752105067504,-460.0,0.00020821,2]
[370731643,1752105067513,-460.0,0.00020821,2]
[370731644,1752105067522,-460.0,0.00020821,2]
[370731645,1752105067532,-460.0,0.00020821,2]
[370731646,1752105067541,-927.787536,0.00020821,2]
[370731647,1752105067551,-927.787536,0.00020821,2]
[370731648,1752105067560,-460.0,0.00020821,2]
[370731649,1752105067571,-151.0,0.00020821,2]
[370731650,1752105067580,-151.0,0.00020821,2]
[370731651,1752105067591,-927.787536,0.00020821,2]
[370731652,1752105067601,-927.787536,0.00020821,2]
[370731653,1752105067610,-460.0,0.00020821,2]
[370731654,1752105067620,-460.0,0.00020821,2]
[370731655,1752105067630,-460.0,0.00020821,2]
[370731656,1752105067639,-460.0,0.00020821,2]
[370731657,1752105067649,-460.0,0.00020821,2]
[370731658,1752105067659,-460.0,0.00020821,2]
[370731659,1752105067668,-460.0,0.00020821,2]
[370731660,1752105067678,-151.0,0.00020821,2]
[370731661,1752105067687,-207.680279,0.00020821,2]
[370731662,1752105067696,-460.0,0.00020821,2]
[370731663,1752105067705,-200.751485,0.00020821,2]
[370731664,1752105067715,-460.0,0.00020821,2]
[370731665,1752105067724,-460.0,0.00020821,2]
[370731666,1752105067733,-460.0,0.00020821,2]
[370731667,1752105067742,-460.0,0.00020821,2]
[370731668,1752105067751,-460.0,0.00020821,2]
[370731669,1752105067760,-460.0,0.00020821,2]
[370731670,1752105067769,-460.0,0.00020821,2]
[370731671,1752105067779,-460.0,0.00020821,2]
[370731672,1752105067788,-460.0,0.00020821,2]
[370731673,1752105067797,-460.0,0.00020821,2]
[370731674,1752105067807,-460.0,0.00020821,2]
[370731675,1752105067818,-460.0,0.00020821,2]
[370731676,1752105067828,-460.0,0.00020821,2]
[370731677,1752105067837,-460.0,0.00020821,2]
[370731678,1752105067847,-460.0,0.00020821,2]
[370731679,1752105067856,-460.0,0.00020821,2]
[370731680,1752105067866,-151.277158,0.00020821,2]
[370731681,1752105067876,-460.0,0.00020821,2]
[370731682,1752105067885,-561.04,0.00020821,2]
[370731683,1752105067894,-606.67,0.00020821,2]
[370731684,1752105067905,-460.0,0.00020821,2]
[370731685,1752105067915,-460.0,0.00020821,2]
[370731686,1752105067924,-532.42,0.00020821,2]
[370731687,1752105067934,-168.34758454,0.00020821,2]
[370731688,1752105067944,-542.61,0.00020821,2]
[370731689,1752105067954,-590.885745,0.00020821,2]
[370731690,1752105067963,-590.885745,0.00020821,2]
[370731691,1752105067973,-590.885745,0.00020821,2]
[370731692,1752105067983,-460.0,0.00020821,2]
[370731693,1752105067992,-460.0,0.00020821,2]
[370731694,1752105068001,-590.885745,0.00020821,2]
[370731695,1752105068011,-590.885745,0.00020821,2]
[370731696,1752105068020,-590.885745,0.00020821,2]
[370731697,1752105068030,-504.24,0.00020821,2]
[370731698,1752105068040,-339.84232095,0.00020821,2]
[370731699,1752105068049,-366.19722588,0.00020821,2]
[370731700,1752105068059,-460.0,0.00020821,2]
[370731701,1752105068069,-460.0,0.00020821,2]
[370731702,1752105068079,-460.0,0.00020821,2]
[370731703,1752105068089,-460.0,0.00020821,2]
[370731704,1752105068099,-460.0,0.00020821,2]
[370731705,1752105068109,-735.83,0.00020821,2]
[370731706,1752105068119,-568.9,0.00020821,2]
[370731707,1752105068129,-169.501855,0.00020821,2]
[370731708,1752105068138,-169.501855,0.00020821,2]
[370731709,1752105068148,-169.501855,0.00020821,2]
[370731710,1752105068157,-169.501855,0.00020821,2]
[370731711,1752105068167,-1107.72,0.00020821,2]
[370731712,1752105068177,-460.0,0.00020821,2]
[370731713,1752105068188,-522.685927,0.00020821,2]
[370731714,1752105068198,-522.685927,0.00020821,2]
[370731715,1752105068207,-614.31,0.00020821,2]
[370731716,1752105068216,-522.685927,0.00020821,2]
[370731717,1752105068226,-522.685927,0.00020821,2]
[370731718,1752105068235,-480.33,0.00020821,2]
[370731719,1752105068245,-159.79,0.00020821,2]
[370731720,1752105068254,-460.0,0.00020821,2]
[370731721,1752105068264,-460.0,0.00020821,2]
[370731722,1752105068273,-580.04,0.00020821,2]
[370731723,1752105068283,-460.0,0.00020821,2]
[370731724,1752105068292,-460.0,0.00020821,2]
[370731725,1752105068301,-460.0,0.00020821,2]
[370731726,1752105068311,-460.0,0.00020821,2]
[370731727,1752105068320,-800.34,0.00020821,2]
[370731728,1752105068330,-207.472037,0.00020821,2]
[370731729,1752105068339,-460.0,0.00020821,2]
[370731730,1752105068348,-557.67,0.00020821,2]
[370731731,1752105068358,-460.0,0.00020821,2]
[370731732,1752105068367,-460.0,0.00020821,2]
[370731733,1752105068377,-496.21,0.00020821,2]
[370731734,1752105068387,-551.5,0.00020821,2]
[370731735,1752105068396,-460.0,0.00020821,2]
[370731736,1752105068406,-460.0,0.00020821,2]
[370731737,1752105068415,-460.0,0.00020821,2]
[370731738,1752105068424,-460.0,0.00020821,2]
[370731739,1752105068434,-490.96,0.00020821,2]
[370731740,1752105068444,-460.0,0.00020821,2]
[370731741,1752105068455,-460.0,0.00020821,2]
[370731742,1752105068467,-460.0,0.00020821,2]
[370731743,1752105068478,-460.0,0.00020821,2]
[370731744,1752105068489,-460.0,0.00020821,2]
[370731745,1752105068500,-151.0,0.00020821,2]
[370731746,1752105068510,-151.0,0.00020821,2]
[370731747,1752105068520,-569.91,0.00020821,2]
[370731748,1752105068530,-1565.13,0.00020821,2]
[370731749,1752105068540,-489.75,0.00020821,2]
[370731750,1752105068550,-460.0,0.00020821,2]
[370731751,1752105068560,-460.0,0.00020821,2]
[370731752,1752105068570,-460.0,0.00020821,2]
[370731753,1752105068580,-460.0,0.00020821,2]
[370731754,1752105068590,-460.0,0.00020821,2]
[370731755,1752105068600,-477.72,0.00020821,2]
[370731756,1752105068609,-460.0,0.00020821,2]
[370731757,1752105068618,-460.0,0.00020821,2]
[370731758,1752105068628,-460.85,0.00020821,2]
[370731759,1752105068637,-1762.329934,0.00020821,2]
[370731760,1752105068647,-549.25,0.00020821,2]
[370731761,1752105068656,-1762.329934,0.00020821,2]
[370731762,1752105068665,-1762.329934,0.00020821,2]
[370731763,1752105068674,-460.0,0.00020821,2]
[370731764,1752105068684,-1762.329934,0.00020821,2]
[370731765,1752105068693,-1762.329934,0.00020821,2]
[370731766,1752105068702,-958.58,0.00020821,2]
[370731767,1752105068712,-1762.329934,0.00020821,2]
[370731768,1752105068721,-460.0,0.00020821,2]
[370731769,1752105068730,-460.0,0.00020821,2]
[370731770,1752105068740,-724.91,0.00020821,2]
[370731771,1752105068752,-748.65,0.00020821,2]
[370731772,1752105068762,-734.16,0.00020821,2]
[370731773,1752105068772,-1037.86,0.00020821,2]
[370731774,1752105068782,-784.33,0.00020821,2]
[370731775,1752105068792,-1277.19,0.00020821,2]
[370731776,1752105068802,-460.0,0.00020821,2]
[370731777,1752105068812,-687.27,0.00020821,2]
[370731778,1752105068827,-645.45,0.00020821,2]
[370731779,1752105068837,-539.13,0.00020821,2]
[370731780,1752105068846,-192.038013,0.00020821,2]
[370731781,1752105068857,-192.038013,0.00020821,2]
[370731782,1752105068867,-460.0,0.00020821,2]
[370731783,1752105068877,-623.4,0.00020821,2]
[370731784,1752105068889,-460.0,0.00020821,2]
[370731785,1752105068899,-722.78,0.00020821,2]
[370731786,1752105068910,-192.038013,0.00020821,2]
[370731787,1752105068920,-192.038013,0.00020821,2]
[370731788,1752105068930,-775.09,0.00020821,2]
[370731789,1752105068939,-460.0,0.00020821,2]
[370731790,1752105068949,-593.13,0.00020821,2]
[370731791,1752105068959,-460.0,0.00020821,2]
[370731792,1752105068968,-258.284792,0.00020821,2]
[370731793,1752105068978,-258.284792,0.00020821,2]
[370731794,1752105068988,-258.284792,0.00020821,2]
[370731795,1752105068998,-460.0,0.00020821,2]
[370731796,1752105069007,-670.1,0.00020821,2]
[370731797,1752105069017,-258.284792,0.00020821,2]
[370731798,1752105069027,-1053.22,0.00020821,2]
[370731799,1752105069037,-460.0,0.00020821,2]
[370731800,1752105069046,-258.284792,0.00020821,2]
[370731801,1752105069056,-258.284792,0.00020821,2]
[370731802,1752105069066,-460.0,0.00020821,2]
[370731803,1752105069075,-531.33,0.00020821,2]
[370731804,1752105069085,-487.15,0.00020821,2]
[370731805,1752105069095,-460.0,0.00020821,2]
[370731806,1752105069105,-460.0,0.00020821,2]
[370731807,1752105069115,-554.18,0.00020821,2]
[370731808,1752105069124,-372.86,0.00020821,2]
[370731809,1752105069134,-163.06,0.00020821,2]
[370731810,1752105069144,-460.0,0.00020821,2]
[370731811,1752105069154,-581.86,0.00020821,2]
[370731812,1752105069164,-460.0,0.00020821,2]
[370731813,1752105069173,-460.0,0.00020821,2]
[370731814,1752105069183,-460.0,0.00020821,2]
[370731815,1752105069192,-1034.43,0.00020821,2]
[370731816,1752105069202,-577.01,0.00020821,2]
[370731817,1752105069212,-460.0,0.00020821,2]
[370731818,1752105069222,-460.0,0.00020821,2]
[370731819,1752105069232,-828.05,0.00020821,2]
[370731820,1752105069241,-460.0,0.00020821,2]
[370731821,1752105069251,-813.38,0.00020821,2]
[370731822,1752105069260,-668.82,0.00020821,2]
[370731823,1752105069271,-460.0,0.00020821,2]
[370731824,1752105069280,-460.0,0.00020821,2]
[370731825,1752105069290,-277.00201671,0.00020821,2]
[370731826,1752105069300,-475.96,0.00020821,2]
[370731827,1752105069310,-1072.0,0.00020821,2]
[370731828,1752105069320,-460.0,0.00020821,2]
[370731829,1752105069329,-460.0,0.00020821,2]
[370731830,1752105069339,-460.0,0.00020821,2]
[370731831,1752105069349,-155.534388,0.00020821,2]
[370731832,1752105069358,-155.534388,0.00020821,2]
[370731833,1752105069367,-155.534388,0.00020821,2]
[370731834,1752105069376,-460.0,0.00020821,2]
[370731835,1752105069386,-324.26,0.00020821,2]
[370731836,1752105069396,-460.0,0.00020821,2]
[370731837,1752105069406,-155.534388,0.00020821,2]
[370731838,1752105069416,-553.92,0.00020821,2]
[370731839,1752105069425,-155.534388,0.00020821,2]
[370731840,1752105069434,-155.534388,0.00020821,2]
[370731841,1752105069443,-460.0,0.00020821,2]
[370731842,1752105069453,-998.68,0.00020821,2]
[370731843,1752105069462,-460.0,0.00020821,2]
[370731844,1752105069471,-460.0,0.00020821,2]
[370731845,1752105069481,-550.134369,0.00020821,2]
[370731846,1752105069490,-460.0,0.00020821,2]
[370731847,1752105069500,-460.0,0.00020821,2]
[370731848,1752105069509,-460.0,0.00020821,2]
[370731849,1752105069518,-460.0,0.00020821,2]
[370731850,1752105069528,-760.46,0.00020821,2]
[370731851,1752105069538,-1331.09,0.00020821,2]
[370731852,1752105069548,-460.0,0.00020821,2]
[370731853,1752105069557,-674.98,0.00020821,2]
[370731854,1752105069567,-460.0,0.00020821,2]
[370731855,1752105069577,-460.0,0.00020821,2]
[370731856,1752105069587,-301.29,0.00020821,2]
[370731857,1752105069596,-526.67,0.00020821,2]
[370731858,1752105069606,-460.0,0.00020821,2]
[370731859,1752105069616,-460.0,0.00020821,2]
[370731860,1752105069625,-196.87757263,0.00020821,2]
[370731861,1752105069635,-1728.68,0.00020821,2]
[370731862,1752105069644,-460.0,0.00020821,2]
[370731863,1752105069654,-842.33,0.00020821,2]
[370731864,1752105069665,-963.78,0.00020821,2]
[370731865,1752105069674,-460.0,0.00020821,2]
[370731866,1752105069684,-1157.61,0.00020821,2]
[370731867,1752105069694,-943.95,0.00020821,2]
[370731868,1752105069704,-460.0,0.00020821,2]
[370731869,1752105069714,-460.0,0.00020821,2]
[370731870,1752105069723,-460.0,0.00020821,2]
[370731871,1752105069734,-759.77,0.00020821,2]
[370731872,1752105069743,-460.0,0.00020821,2]
[370731873,1752105069753,-285.703325,0.00020821,2]
[370731874,1752105069763,-285.703325,0.00020821,2]
[370731875,1752105069773,-285.703325,0.00020821,2]
[370731876,1752105069782,-460.0,0.00020821,2]
[370731877,1752105069792,-628.58,0.00020821,2]
[370731878,1752105069802,-920.73,0.00020821,2]
[370731879,1752105069812,-1140.86,0.00020821,2]
[370731880,1752105069826,-460.0,0.00020821,2]
[370731881,1752105069835,-1684.43,0.00020821,2]
[370731882,1752105069845,-460.0,0.00020821,2]
[370731883,1752105069855,-665.7,0.00020821,2]
[370731884,1752105069865,-650.67,0.00020821,2]
[370731885,1752105069874,-621.48,0.00020821,2]
[370731886,1752105070057,-460.0,0.00020821,2]
[370731887,1752105070093,-460.0,0.00020821,2]
[370731888,1752105070113,-285.703325,0.00020821,2]
[370731889,1752105070123,-285.703325,0.00020821,2]
[370731890,1752105070132,-285.703325,0.00020821,2]
[370731891,1752105070142,-669.02,0.00020821,2]
[370731892,1752105070151,-1159.15,0.00020821,2]
[370731893,1752105070161,-460.0,0.00020821,2]
[370731894,1752105070170,-460.0,0.00020821,2]
[370731895,1752105070180,-460.0,0.00020821,2]
[370731896,1752105070190,-151.0,0.00020821,2]
[370731897,1752105070199,-151.0,0.00020821,2]
[370731898,1752105070209,-1243.63,0.00020821,2]
[370731899,1752105070218,-151.0,0.00020821,2]
[370731900,1752105070229,-436.5558011,0.00020821,2]
[370731901,1752105070238,-1009.31,0.00020821,2]
[370731902,1752105070248,-640.0,0.00020821,2]
[370731903,1752105070257,-460.0,0.00020821,2]
[370731904,1752105070267,-151.0,0.00020821,2]
[370731905,1752105070276,-274.731171,0.00020821,2]
[370731906,1752105070286,-559.97716201,0.00020821,2]
[370731907,1752105070295,-540.1703611,0.00020821,2]
[370731908,1752105070306,-460.0,0.00020821,2]
[370731909,1752105070315,-117.25382551,0.00020821,2]
[370731910,1752105070923,-529.78971903,0.00020821,2]
[370731911,1752105071322,-151.0,0.00014,2]
[370731912,1752105071331,-291.27142083,0.00020547,2]
[370731913,1752105071355,-168.72857917,0.00020547,2]
[370731914,1752105071365,-549.72,0.00020684,2]
[370731915,1752105071375,-563.67645546,0.00020821,2]
[370731916,1752105071384,-957.64,0.00020821,2]
[370731917,1752105071394,-460.0,0.00020821,2]
[370731918,1752105071404,-460.0,0.00020821,2]
[370731919,1752105071413,-151.0,0.00020821,2]
[370731920,1752105071424,-591.47,0.00020821,2]
[370731921,1752105071433,-151.0,0.00020821,2]
[370731922,1752105071443,-158.551389,0.00020821,2]
[370731923,1752105071452,-460.0,0.00020821,2]
[370731924,1752105071462,-1015.33,0.00020821,2]
[370731925,1752105071471,-460.0,0.00020821,2]
[370731926,1752105071481,-460.0,0.00020821,2]
[370731927,1752105071490,-177.58160284,0.00020821,2]
[370731928,1752105071502,-282.41839716,0.00020821,2]
[370731929,1752105071512,-335.226006,0.00020821,2]
[370731930,1752105071522,-335.226006,0.00020821,2]
[370731931,1752105071532,-168.28865079,0.00020821,2]
[370731932,1752105071543,-166.93735521,0.00020821,2]
[370731933,1752105071553,-1414.47,0.00020821,2]
[370731934,1752105071564,-460.0,0.00020821,2]
[370731935,1752105071574,-335.226006,0.00020821,2]
[370731936,1752105071583,-335.226006,0.00020821,2]
[370731937,1752105071593,-269.94463879,0.00020821,2]
[370731938,1752105071605,-467.63536121,0.00020821,2]
[370731939,1752105071615,-335.226006,0.00020821,2]
[370731940,1752105071624,-460.0,0.00020821,2]
[370731941,1752105071634,-460.0,0.00020821,2]
[370731942,1752105071643,-713.01,0.00020821,2]
[370731943,1752105071653,-460.0,0.00020821,2]
[370731944,1752105071663,-591.96494479,0.00020821,2]
[370731945,1752105071788,-6.65505521,0.00020821,2]
[370731946,1752105071798,-460.0,0.00020821,2]
[370731947,1752105071808,-465.87,0.00020821,2]
[370731948,1752105071820,-195.101808,0.00020821,2]
[370731949,1752105071829,-195.101808,0.00020821,2]
[370731950,1752105071839,-792.55,0.00020821,2]
[370731951,1752105071848,-195.101808,0.00020821,2]
[370731952,1752105071858,-460.0,0.00020821,2]
[370731953,1752105071868,-706.55,0.00020821,2]
[370731954,1752105071878,-460.0,0.00020821,2]
[370731955,1752105071887,-967.6,0.00020821,2]
[370731956,1752105071897,-460.0,0.00020821,2]
[370731957,1752105071907,-460.0,0.00020821,2]
[370731958,1752105071916,-460.0,0.00020821,2]
[370731959,1752105071926,-460.0,0.00020821,2]
[370731960,1752105071935,-195.101808,0.00020821,2]
[370731961,1752105071945,-195.101808,0.00020821,2]
[370731962,1752105071955,-195.101808,0.00020821,2]
[370731963,1752105071964,-460.0,0.00020821,2]
[370731964,1752105071974,-460.0,0.00020821,2]
[370731965,1752105071983,-537.71766633,0.00020821,2]
[370731966,1752105071992,-496.16,0.00020821,2]
[370731967,1752105072002,-460.0,0.00020821,2]
[370731968,1752105072012,-460.0,0.00020821,2]
[370731969,1752105072022,-558.71,0.00020821,2]
[370731970,1752105072031,-460.0,0.00020821,2]
[370731971,1752105072041,-460.0,0.00020821,2]
[370731972,1752105072050,-980.39,0.00020821,2]
[370731973,1752105072060,-460.0,0.00020821,2]
[370731974,1752105072070,-285.46,0.00020821,2]
[370731975,1752105072080,-460.0,0.00020821,2]
[370731976,1752105072090,-460.0,0.00020821,2]
[370731977,1752105072099,-801.836809,0.00020821,2]
[370731978,1752105072109,-801.836809,0.00020821,2]
[370731979,1752105072119,-499.08,0.00020821,2]
[370731980,1752105072128,-744.46,0.00020821,2]
[370731981,1752105072138,-509.55,0.00020821,2]
[370731982,1752105072147,-460.0,0.00020821,2]
[370731983,1752105072157,-460.0,0.00020821,2]
[370731984,1752105072168,-801.836809,0.00020821,2]
[370731985,1752105072177,-460.0,0.00020821,2]
[370731986,1752105072187,-801.836809,0.00020821,2]
[370731987,1752105072197,-159.430466,0.00020821,2]
[370731988,1752105072207,-159.430466,0.00020821,2]
[370731989,1752105072217,-159.430466,0.00020821,2]
[370731990,1752105072226,-460.0,0.00020821,2]
[370731991,1752105072236,-159.430466,0.00020821,2]
[370731992,1752105072246,-659.32,0.00020821,2]
[370731993,1752105072256,-159.430466,0.00020821,2]
[370731994,1752105072265,-1251.92,0.00020821,2]
[370731995,1752105072275,-476.64,0.00020821,2]
[370731996,1752105072284,-784.44,0.00020821,2]
[370731997,1752105072294,-159.430466,0.00020821,2]
[370731998,1752105072303,-252.41284091,0.00020821,2]
[370731999,1752105072313,-460.0,0.00020821,2]
[370732000,1752105072322,-460.0,0.00020821,2]
[370732001,1752105072331,-564.00458943,0.00020821,2]
[370732002,1752105072341,-711.71,0.00020821,2]
[370732003,1752105072350,-460.0,0.00020821,2]
[370732004,1752105072436,-460.0,0.00020821,2]
[370732005,1752105072446,-527.28,0.00020821,2]
[370732006,1752105072456,-536.36,0.00020821,2]
[370732007,1752105072465,-791.72,0.00020821,2]
[370732008,1752105072475,-460.0,0.00020821,2]
[370732009,1752105072484,-460.0,0.00020821,2]
[370732010,1752105072493,-460.0,0.00020821,2]
[370732011,1752105072503,-612.2,0.00020821,2]
[370732012,1752105072513,-460.0,0.00020821,2]
[370732013,1752105072522,-460.0,0.00020821,2]
[370732014,1752105072532,-460.0,0.00020821,2]
[370732015,1752105072541,-200.965256,0.00020821,2]
[370732016,1752105072551,-1259.97,0.00020821,2]
[370732017,1752105072560,-460.0,0.00020821,2]
[370732018,1752105072570,-200.965256,0.00020821,2]
[370732019,1752105072579,-200.965256,0.00020821,2]
[370732020,1752105072589,-200.965256,0.00020821,2]
[370732021,1752105072598,-936.08,0.00020821,2]
[370732022,1752105072608,-200.965256,0.00020821,2]
[370732023,1752105072618,-272.31448828,0.00020821,2]
[370732024,1752105072627,-200.965256,0.00020821,2]
[370732025,1752105072637,-460.0,0.00020821,2]
[370732026,1752105072646,-1173.76,0.00020821,2]
[370732027,1752105072655,-547.0,0.00020821,2]
[370732028,1752105072664,-460.0,0.00020821,2]
[370732029,1752105072673,-460.0,0.00020821,2]
[370732030,1752105072682,-460.0,0.00020821,2]
[370732031,1752105072692,-460.0,0.00020821,2]
[370732032,1752105072701,-465.35,0.00020821,2]
[370732033,1752105072710,-306.49413691,0.00020821,2]
[370732034,1752105072719,-460.0,0.00020821,2]
[370732035,1752105072729,-781.59,0.00020821,2]
[370732036,1752105072738,-1041.43,0.00020821,2]
[370732037,1752105072747,-527.99515799,0.00020821,2]
[370732038,1752105072757,-3269.76,0.00020821,2]
[370732039,1752105072766,-460.0,0.00020821,2]
[370732040,1752105072775,-460.0,0.00020821,2]
[370732041,1752105072784,-497.83,0.00020821,2]
[370732042,1752105072793,-986.17,0.00020821,2]
[370732043,1752105072802,-676.91,0.00020821,2]
[370732044,1752105072812,-2047.64,0.00020821,2]
[370732045,1752105072822,-151.0,0.00020821,2]
[370732046,1752105072832,-787.27,0.00020821,2]
[370732047,1752105072841,-164.49,0.00020821,2]
[370732048,1752105072850,-151.0,0.00020821,2]
[370732049,1752105072860,-460.0,0.00020821,2]
[370732050,1752105072869,-460.0,0.00020821,2]
[370732051,1752105072878,-460.0,0.00020821,2]
[370732052,1752105072888,-932.37,0.00020821,2]
[370732053,1752105072897,-460.0,0.00020821,2]
[370732054,1752105072906,-1000.0,0.00020821,2]
[370732055,1752105072915,-460.0,0.00020821,2]
[370732056,1752105072925,-871.6,0.00020821,2]
[370732057,1752105072934,-460.0,0.00020821,2]
[370732058,1752105072943,-460.0,0.00020821,2]
[370732059,1752105072953,-1857.79,0.00020821,2]
[370732060,1752105072963,-669.64,0.00020821,2]
[370732061,1752105072972,-460.0,0.00020821,2]
[370732062,1752105072982,-4542.01,0.00020821,2]
[370732063,1752105072991,-460.0,0.00020821,2]
[370732064,1752105073001,-484.95,0.00020821,2]
[370732065,1752105073010,-810.92,0.00020821,2]
[370732066,1752105073020,-571.86,0.00020821,2]
[370732067,1752105073030,-460.0,0.00020821,2]
[370732068,1752105073039,-724.74,0.00020821,2]
[370732069,1752105073048,-460.0,0.00020821,2]
[370732070,1752105073058,-460.0,0.00020821,2]
[370732071,1752105073067,-619.29,0.00020821,2]
[370732072,1752105073076,-169.246777,0.00020821,2]
[370732073,1752105073085,-169.246777,0.00020821,2]
[370732074,1752105073095,-460.0,0.00020821,2]
[370732075,1752105073104,-4311.31,0.00020821,2]
[370732076,1752105073114,-855.35,0.00020821,2]
[370732077,1752105073123,-3075.14,0.00020821,2]
[370732078,1752105073132,-460.0,0.00020821,2]
[370732079,1752105073142,-672.33,0.00020821,2]
[370732080,1752105073151,-460.0,0.00020821,2]
[370732081,1752105073160,-460.0,0.00020821,2]
[370732082,1752105073170,-169.246777,0.00020821,2]
[370732083,1752105073179,-169.246777,0.00020821,2]
[370732084,1752105073188,-460.0,0.00020821,2]
[370732085,1752105073198,-460.0,0.00020821,2]
[370732086,1752105073207,-1109.46,0.00020821,2]
[370732087,1752105073217,-687.35,0.00020821,2]
[370732088,1752105073226,-460.0,0.00020821,2]
[370732089,1752105073235,-460.0,0.00020821,2]
[370732090,1752105073245,-503.01,0.00020821,2]
[370732091,1752105073254,-3767.17,0.00020821,2]
[370732092,1752105073263,-460.0,0.00020821,2]
[370732093,1752105073272,-460.0,0.00020821,2]
[370732094,1752105073282,-460.0,0.00020821,2]
[370732095,1752105073291,-4131.18,0.00020821,2]
[370732096,1752105073300,-687.28,0.00020821,2]
[370732097,1752105073310,-460.0,0.00020821,2]
[370732098,1752105073319,-2500.80410537,0.00020821,2]
[370732099,1752105074719,-3351.4321,0.00020547,2]
[370732100,1752105074730,-5575.2779,0.00020547,2]
[370732101,1752105074740,-457.47202183,0.00020547,2]
[370732123,1752105215571,400.0,0.00030137,120]